[Event "*** Titled Tuesday Blitz"]
[Site "Chess.com"]
[Date "2021.03.02"]
[Round "6"]
[White "Kostukov_Alex"]
[Black "Kozok"]
[Result "0-1"]
[WhiteElo "2321"]
[BlackElo "2453"]
[TimeControl "180+1"]
[EndTime "11:08:26 PST"]
[Termination "Kozok won on time"]

1. g3 {[%clk 0:02:59.6]} 1... d5 {[%clk 0:02:56.4]} 2. Bg2 {[%clk 0:02:59.6]}
2... Nf6 {[%clk 0:02:56.9]} 3. d3 {[%clk 0:02:59.8]} 3... Bf5 {[%clk 0:02:57.2]}
4. Nc3 {[%clk 0:02:58.2]} 4... e6 {[%clk 0:02:52.1]} 5. e4 {[%clk 0:02:58.2]}
5... dxe4 {[%clk 0:02:52.1]} 6. Nxe4 {[%clk 0:02:58.2]} 6... Nxe4 {[%clk
0:02:46.3]} 7. dxe4 {[%clk 0:02:57.9]} 7... Qxd1+ {[%clk 0:02:46.4]} 8. Kxd1
{[%clk 0:02:58.3]} 8... Bg6 {[%clk 0:02:47]} 9. Be3 {[%clk 0:02:53.4]} 9... Nc6
{[%clk 0:02:46.6]} 10. c3 {[%clk 0:02:50.1]} 10... O-O-O+ {[%clk 0:02:45.1]} 11.
Ke2 {[%clk 0:02:45.6]} 11... e5 {[%clk 0:02:42.5]} 12. f3 {[%clk 0:02:40.3]}
12... f6 {[%clk 0:02:36.8]} 13. Nh3 {[%clk 0:02:29.1]} 13... Bf7 {[%clk
0:02:27.8]} 14. b3 {[%clk 0:02:28.5]} 14... Ba3 {[%clk 0:02:27.8]} 15. Bc1
{[%clk 0:02:20.5]} 15... Bc5 {[%clk 0:02:16.1]} 16. Be3 {[%clk 0:02:18.8]} 16...
Ba3 {[%clk 0:02:00.6]} 17. Bc1 {[%clk 0:02:13.1]} 17... Be7 {[%clk 0:02:00.7]}
18. Nf2 {[%clk 0:02:08.1]} 18... h5 {[%clk 0:01:57.7]} 19. h4 {[%clk 0:02:06.2]}
19... a5 {[%clk 0:01:53.7]} 20. Be3 {[%clk 0:02:00.1]} 20... b5 {[%clk
0:01:47.7]} 21. Nd3 {[%clk 0:01:42.9]} 21... a4 {[%clk 0:01:30.1]} 22. Rab1
{[%clk 0:01:35.7]} 22... a3 {[%clk 0:01:24.7]} 23. Nc5 {[%clk 0:01:25.6]} 23...
Nd4+ {[%clk 0:01:24.7]} 24. cxd4 {[%clk 0:01:19.7]} 24... exd4 {[%clk 0:01:25]}
25. Bh3+ {[%clk 0:01:17.5]} 25... Kb8 {[%clk 0:01:22.2]} 26. Nd7+ {[%clk
0:01:10.4]} 26... Rxd7 {[%clk 0:01:17]} 27. Bxd7 {[%clk 0:01:08.5]} 27... dxe3
{[%clk 0:01:16.9]} 28. Kxe3 {[%clk 0:01:04.8]} 28... b4 {[%clk 0:01:07.8]} 29.
Rbc1 {[%clk 0:00:58.2]} 29... Rd8 {[%clk 0:01:00.2]} 30. Rhd1 {[%clk 0:00:57]}
30... Bd6 {[%clk 0:01:00.7]} 31. Bb5 {[%clk 0:00:51.5]} 31... c5 {[%clk
0:00:42.3]} 32. f4 {[%clk 0:00:49.8]} 32... Kc7 {[%clk 0:00:42]} 33. Ke2 {[%clk
0:00:44.6]} 33... g5 {[%clk 0:00:35.5]} 34. e5 {[%clk 0:00:34.2]} 34... fxe5
{[%clk 0:00:26.4]} 35. fxe5 {[%clk 0:00:26.2]} 35... Be7 {[%clk 0:00:21.8]} 36.
Rxd8 {[%clk 0:00:25]} 36... Kxd8 {[%clk 0:00:21.5]} 37. Bc4 {[%clk 0:00:17.1]}
37... Bg6 {[%clk 0:00:18.8]} 38. hxg5 {[%clk 0:00:13.4]} 38... Bxg5 {[%clk
0:00:18.5]} 39. Rd1+ {[%clk 0:00:14.3]} 39... Ke7 {[%clk 0:00:15.3]} 40. Rd6
{[%clk 0:00:14.9]} 40... Bb1 {[%clk 0:00:15]} 41. Rc6 {[%clk 0:00:10.4]} 41...
Bxa2 {[%clk 0:00:13.8]} 42. Rxc5 {[%clk 0:00:10.6]} 42... Bb1 {[%clk 0:00:12.1]}
43. Ra5 {[%clk 0:00:10.5]} 43... a2 {[%clk 0:00:11.7]} 44. Bd3 {[%clk
0:00:10.6]} 44... Bc1 {[%clk 0:00:09.5]} 45. Bc4 {[%clk 0:00:05.1]} 45... Bb2
{[%clk 0:00:09.3]} 46. Kf3 {[%clk 0:00:03.5]} 46... a1=Q {[%clk 0:00:08.5]} 47.
Rxa1 {[%clk 0:00:04.2]} 47... Bxa1 {[%clk 0:00:09.4]} 48. g4 {[%clk 0:00:03.5]}
48... hxg4+ {[%clk 0:00:09.2]} 49. Kxg4 {[%clk 0:00:03.7]} 49... Bxe5 {[%clk
0:00:10.1]} 50. Kf3 {[%clk 0:00:03.3]} 50... Bd4 {[%clk 0:00:10]} 51. Ke2 {[%clk
0:00:02.5]} 51... Kd6 {[%clk 0:00:09.7]} 52. Kd2 {[%clk 0:00:03.1]} 52... Ke5
{[%clk 0:00:08.3]} 53. Kc1 {[%clk 0:00:04]} 53... Be4 {[%clk 0:00:08.6]} 54. Be2
{[%clk 0:00:04.1]} 54... Kf4 {[%clk 0:00:08.8]} 55. Bd1 {[%clk 0:00:04.8]} 55...
Ke3 {[%clk 0:00:09.1]} 56. Bh5 {[%clk 0:00:04.1]} 56... Bd5 {[%clk 0:00:09.2]}
57. Kc2 {[%clk 0:00:04]} 57... Bc3 {[%clk 0:00:08.1]} 58. Bd1 {[%clk 0:00:01.6]}
58... Be4+ {[%clk 0:00:05.8]} 59. Kc1 {[%clk 0:00:02.1]} 59... Bd2+ {[%clk
0:00:06.1]} 60. Kb2 {[%clk 0:00:01.6]} 60... Kd4 {[%clk 0:00:04.2]} 61. Bh5
{[%clk 0:00:01.1]} 61... Bf4 {[%clk 0:00:04.2]} 0-1

[Event "*** Titled Tuesday Blitz"]
[Site "Chess.com"]
[Date "2021.03.02"]
[Round "6"]
[White "Jungle_Jaguar"]
[Black "anon481216"]
[Result "0-1"]
[WhiteElo "2600"]
[BlackElo "2488"]
[TimeControl "180+1"]
[EndTime "11:08:29 PST"]
[Termination "anon481216 won by checkmate"]

1. e4 {[%clk 0:03:00.9]} 1... c5 {[%clk 0:02:59.9]} 2. Nf3 {[%clk 0:03:01]} 2...
e6 {[%clk 0:03:00.4]} 3. d4 {[%clk 0:03:01.1]} 3... cxd4 {[%clk 0:02:59.3]} 4.
Nxd4 {[%clk 0:03:02]} 4... Nc6 {[%clk 0:02:59.8]} 5. Nc3 {[%clk 0:03:01.6]} 5...
Qc7 {[%clk 0:03:00.3]} 6. Be3 {[%clk 0:03:02.1]} 6... a6 {[%clk 0:03:00.6]} 7.
Be2 {[%clk 0:03:01.8]} 7... Nf6 {[%clk 0:02:57.3]} 8. O-O {[%clk 0:03:00.9]}
8... Be7 {[%clk 0:02:57.1]} 9. Kh1 {[%clk 0:02:57.6]} 9... O-O {[%clk
0:02:51.8]} 10. f4 {[%clk 0:02:57.7]} 10... d6 {[%clk 0:02:51.8]} 11. Qe1 {[%clk
0:02:57.9]} 11... Nxd4 {[%clk 0:02:51.4]} 12. Bxd4 {[%clk 0:02:58.2]} 12... b5
{[%clk 0:02:51.9]} 13. a3 {[%clk 0:02:58.4]} 13... Bb7 {[%clk 0:02:52.3]} 14.
Qg3 {[%clk 0:02:58]} 14... Bc6 {[%clk 0:02:50.2]} 15. Bd3 {[%clk 0:02:53.6]}
15... Rad8 {[%clk 0:02:47.5]} 16. Rae1 {[%clk 0:02:53.2]} 16... Qd7 {[%clk
0:02:40.1]} 17. Qh3 {[%clk 0:02:39.1]} 17... e5 {[%clk 0:02:29.9]} 18. fxe5
{[%clk 0:02:23]} 18... dxe5 {[%clk 0:02:27.9]} 19. Bxe5 {[%clk 0:02:23.2]} 19...
Qxh3 {[%clk 0:02:27.1]} 20. gxh3 {[%clk 0:02:24.1]} 20... Rfe8 {[%clk
0:02:27.5]} 21. Kg2 {[%clk 0:02:07]} 21... Nd7 {[%clk 0:01:57.7]} 22. Bc7 {[%clk
0:02:03.7]} 22... Rc8 {[%clk 0:01:56.7]} 23. Bg3 {[%clk 0:02:04.3]} 23... Nc5
{[%clk 0:01:54.5]} 24. Nd5 {[%clk 0:01:58.5]} 24... Bf8 {[%clk 0:01:43.4]} 25.
Rf3 {[%clk 0:01:24.4]} 25... Nxe4 {[%clk 0:01:35.6]} 26. Bxe4 {[%clk 0:00:53]}
26... Rxe4 {[%clk 0:01:35.1]} 27. Rxe4 {[%clk 0:00:53.5]} 27... Bxd5 {[%clk
0:01:34.9]} 28. Re2 {[%clk 0:00:52.8]} 28... f5 {[%clk 0:01:25.3]} 29. c3 {[%clk
0:00:48.5]} 29... Kf7 {[%clk 0:01:23.4]} 30. Rd2 {[%clk 0:00:42.5]} 30... Be4
{[%clk 0:01:14.2]} 31. Be5 {[%clk 0:00:27.2]} 31... Ke6 {[%clk 0:01:09.4]} 32.
Bd4 {[%clk 0:00:25.9]} 32... g5 {[%clk 0:01:02.6]} 33. Kf2 {[%clk 0:00:25.5]}
33... Bxf3 {[%clk 0:01:02.8]} 34. Kxf3 {[%clk 0:00:26.4]} 34... Bd6 {[%clk
0:00:56]} 35. Be3 {[%clk 0:00:22.1]} 35... Be7 {[%clk 0:00:47.9]} 36. Re2 {[%clk
0:00:20.1]} 36... Kf7 {[%clk 0:00:41.8]} 37. Rd2 {[%clk 0:00:20.4]} 37... Rd8
{[%clk 0:00:39.6]} 38. Rxd8 {[%clk 0:00:15.1]} 38... Bxd8 {[%clk 0:00:39.5]} 39.
Bd4 {[%clk 0:00:14.7]} 39... Ke6 {[%clk 0:00:39.5]} 40. Be3 {[%clk 0:00:11]}
40... h5 {[%clk 0:00:37.7]} 41. Ke2 {[%clk 0:00:09.6]} 41... Kd5 {[%clk
0:00:29.2]} 42. Kd3 {[%clk 0:00:09.9]} 42... g4 {[%clk 0:00:29.2]} 43. hxg4
{[%clk 0:00:10.1]} 43... hxg4 {[%clk 0:00:29.5]} 44. Bf4 {[%clk 0:00:10.5]}
44... Bf6 {[%clk 0:00:26]} 45. b3 {[%clk 0:00:10.6]} 45... Be5 {[%clk
0:00:21.5]} 46. Bg3 {[%clk 0:00:08.4]} 46... f4 {[%clk 0:00:20.9]} 47. Bf2
{[%clk 0:00:06.9]} 47... f3 {[%clk 0:00:21.2]} 48. Bg1 {[%clk 0:00:06.3]} 48...
Bf4 {[%clk 0:00:16.7]} 49. c4+ {[%clk 0:00:06.2]} 49... bxc4+ {[%clk 0:00:17]}
50. bxc4+ {[%clk 0:00:07.1]} 50... Kc6 {[%clk 0:00:17.3]} 51. Ke4 {[%clk
0:00:08]} 51... Bd6 {[%clk 0:00:17.3]} 52. Bf2 {[%clk 0:00:06.5]} 52... Bc5
{[%clk 0:00:16.5]} 53. Bg3 {[%clk 0:00:03.6]} 53... f2 {[%clk 0:00:13.3]} 54.
Bxf2 {[%clk 0:00:03.9]} 54... Bxf2 {[%clk 0:00:13.9]} 55. Kf4 {[%clk 0:00:04]}
55... Kc5 {[%clk 0:00:14.2]} 56. Kxg4 {[%clk 0:00:04]} 56... Kxc4 {[%clk
0:00:14.6]} 57. h4 {[%clk 0:00:03.6]} 57... Kb3 {[%clk 0:00:14.4]} 58. h5 {[%clk
0:00:03.8]} 58... Kxa3 {[%clk 0:00:13.7]} 59. Kf3 {[%clk 0:00:04.5]} 59... Bd4
{[%clk 0:00:14.1]} 60. h6 {[%clk 0:00:05.2]} 60... a5 {[%clk 0:00:13.7]} 61. h7
{[%clk 0:00:06.1]} 61... Bh8 {[%clk 0:00:13.4]} 62. Ke4 {[%clk 0:00:07]} 62...
Kb2 {[%clk 0:00:13.7]} 63. Kd3 {[%clk 0:00:07.9]} 63... a4 {[%clk 0:00:14]} 64.
Ke4 {[%clk 0:00:08.6]} 64... a3 {[%clk 0:00:14.2]} 65. Kf5 {[%clk 0:00:09.5]}
65... a2 {[%clk 0:00:14.6]} 66. Kg6 {[%clk 0:00:10.4]} 66... a1=Q {[%clk
0:00:14.9]} 67. Kf7 {[%clk 0:00:11.3]} 67... Qa7+ {[%clk 0:00:14.3]} 68. Kg8
{[%clk 0:00:12.2]} 68... Qg7# {[%clk 0:00:14.3]} 0-1

[Event "*** Titled Tuesday Blitz"]
[Site "Chess.com"]
[Date "2021.03.02"]
[Round "6"]
[White "louis198"]
[Black "kekic76"]
[Result "1-0"]
[WhiteElo "2625"]
[BlackElo "2361"]
[TimeControl "180+1"]
[EndTime "11:08:30 PST"]
[Termination "louis198 won on time"]

1. d4 {[%clk 0:03:00.9]} 1... d6 {[%clk 0:02:59.5]} 2. c4 {[%clk 0:03:01]} 2...
e5 {[%clk 0:02:59.5]} 3. e3 {[%clk 0:02:57.6]} 3... Nc6 {[%clk 0:02:59.3]} 4.
Nf3 {[%clk 0:02:56.3]} 4... Nf6 {[%clk 0:02:58.9]} 5. h3 {[%clk 0:02:55.8]} 5...
Be7 {[%clk 0:02:58.9]} 6. Be2 {[%clk 0:02:55.8]} 6... O-O {[%clk 0:02:58.2]} 7.
O-O {[%clk 0:02:56.3]} 7... Re8 {[%clk 0:02:58.1]} 8. Nc3 {[%clk 0:02:56.3]}
8... exd4 {[%clk 0:02:56.3]} 9. exd4 {[%clk 0:02:56.2]} 9... h6 {[%clk
0:02:55.8]} 10. Bf4 {[%clk 0:02:49.4]} 10... Bf5 {[%clk 0:02:54.6]} 11. d5
{[%clk 0:02:48.6]} 11... Nb8 {[%clk 0:02:50.3]} 12. Nd4 {[%clk 0:02:48.7]} 12...
Bh7 {[%clk 0:02:45.7]} 13. Re1 {[%clk 0:02:48.3]} 13... a5 {[%clk 0:02:40.7]}
14. Bd3 {[%clk 0:02:44.9]} 14... Bxd3 {[%clk 0:02:39.4]} 15. Qxd3 {[%clk
0:02:44.4]} 15... Ra6 {[%clk 0:02:37.6]} 16. Nf5 {[%clk 0:02:44.4]} 16... Bf8
{[%clk 0:02:23]} 17. Qd2 {[%clk 0:02:11.3]} 17... Nbd7 {[%clk 0:02:04.2]} 18.
Rxe8 {[%clk 0:01:35.9]} 18... Qxe8 {[%clk 0:01:57.8]} 19. Re1 {[%clk 0:01:34.5]}
19... Qd8 {[%clk 0:01:57.7]} 20. Bxh6 {[%clk 0:01:23.6]} 20... gxh6 {[%clk
0:01:53.7]} 21. Nxh6+ {[%clk 0:01:22.9]} 21... Bxh6 {[%clk 0:01:46.8]} 22. Qxh6
{[%clk 0:01:23.8]} 22... Nh7 {[%clk 0:01:45.8]} 23. Re3 {[%clk 0:01:17.8]} 23...
Kh8 {[%clk 0:01:41.8]} 24. Ne4 {[%clk 0:01:08.6]} 24... Qf8 {[%clk 0:01:37.6]}
25. Qh4 {[%clk 0:01:04.6]} 25... Ne5 {[%clk 0:01:14.2]} 26. Rg3 {[%clk
0:00:57.7]} 26... Ng6 {[%clk 0:01:05.4]} 27. Qh5 {[%clk 0:00:49.5]} 27... Ra8
{[%clk 0:00:50.1]} 28. Rf3 {[%clk 0:00:38.4]} 28... Qg7 {[%clk 0:00:42.9]} 29.
b3 {[%clk 0:00:17.3]} 29... Re8 {[%clk 0:00:41.7]} 30. Ng5 {[%clk 0:00:12.6]}
30... Rf8 {[%clk 0:00:24.3]} 31. Rf6 {[%clk 0:00:09.6]} 31... Nf4 {[%clk
0:00:13.3]} 32. Qxh7+ {[%clk 0:00:05.4]} 32... Qxh7 {[%clk 0:00:12.4]} 33. Nxh7
{[%clk 0:00:06.3]} 33... Kxh7 {[%clk 0:00:12.7]} 34. Rxf4 {[%clk 0:00:06.3]}
34... Kg6 {[%clk 0:00:12.7]} 35. Kf1 {[%clk 0:00:06.2]} 35... Re8 {[%clk
0:00:12.5]} 36. Rf3 {[%clk 0:00:06.6]} 36... Re4 {[%clk 0:00:10.7]} 37. Re3
{[%clk 0:00:06.7]} 37... Rd4 {[%clk 0:00:10.8]} 38. Ke2 {[%clk 0:00:07]} 38...
Kf6 {[%clk 0:00:09.9]} 39. g3 {[%clk 0:00:07.3]} 39... c6 {[%clk 0:00:09.2]} 40.
dxc6 {[%clk 0:00:06.8]} 40... bxc6 {[%clk 0:00:10.1]} 41. Rd3 {[%clk 0:00:07.7]}
41... Re4+ {[%clk 0:00:10]} 42. Kf3 {[%clk 0:00:08.2]} 42... Re6 {[%clk
0:00:09.8]} 43. h4 {[%clk 0:00:08.7]} 43... Kf5 {[%clk 0:00:06.1]} 44. Re3
{[%clk 0:00:08.5]} 44... Rf6 {[%clk 0:00:04.7]} 45. Re4 {[%clk 0:00:08.1]} 45...
Kg6+ {[%clk 0:00:03.2]} 46. Ke3 {[%clk 0:00:08]} 46... d5 {[%clk 0:00:02.9]} 47.
cxd5 {[%clk 0:00:08]} 47... cxd5 {[%clk 0:00:03.8]} 48. Re5 {[%clk 0:00:07.3]}
48... Rd6 {[%clk 0:00:03.9]} 49. Kd4 {[%clk 0:00:07.5]} 49... f6 {[%clk
0:00:03.6]} 50. Rxd5 {[%clk 0:00:07.3]} 50... Rc6 {[%clk 0:00:04.5]} 51. Rxa5
{[%clk 0:00:06.9]} 51... Rc2 {[%clk 0:00:04.1]} 52. Ke3 {[%clk 0:00:07.1]} 52...
Rc3+ {[%clk 0:00:04]} 53. Kf4 {[%clk 0:00:06.7]} 53... Rc2 {[%clk 0:00:04]} 54.
Kf3 {[%clk 0:00:06.5]} 54... Rc3+ {[%clk 0:00:03.5]} 55. Kg4 {[%clk 0:00:06.9]}
55... Rc2 {[%clk 0:00:03.5]} 56. h5+ {[%clk 0:00:07.3]} 56... Kh6 {[%clk
0:00:03.1]} 57. f4 {[%clk 0:00:08.2]} 57... Rb2 {[%clk 0:00:01.2]} 58. Ra6
{[%clk 0:00:07.5]} 1-0

[Event "*** Titled Tuesday Blitz"]
[Site "Chess.com"]
[Date "2021.03.02"]
[Round "6"]
[White "zimmm36"]
[Black "Gerodot71"]
[Result "1-0"]
[WhiteElo "2336"]
[BlackElo "2541"]
[TimeControl "180+1"]
[EndTime "11:08:31 PST"]
[Termination "zimmm36 won by resignation"]

1. d4 {[%clk 0:03:00.9]} 1... Nf6 {[%clk 0:03:00]} 2. c4 {[%clk 0:03:00.6]} 2...
e6 {[%clk 0:02:59.9]} 3. g3 {[%clk 0:02:59.3]} 3... d5 {[%clk 0:02:59.8]} 4. Nf3
{[%clk 0:02:58.9]} 4... Be7 {[%clk 0:03:00.3]} 5. Bg2 {[%clk 0:02:58.9]} 5...
O-O {[%clk 0:03:00.8]} 6. O-O {[%clk 0:02:59]} 6... dxc4 {[%clk 0:03:00.9]} 7.
Qc2 {[%clk 0:02:58.1]} 7... a6 {[%clk 0:02:59.6]} 8. a4 {[%clk 0:02:56]} 8...
Nc6 {[%clk 0:02:59.4]} 9. Rd1 {[%clk 0:02:44.6]} 9... Nb4 {[%clk 0:02:53.2]} 10.
Qxc4 {[%clk 0:02:43.1]} 10... b5 {[%clk 0:02:53.3]} 11. Qb3 {[%clk 0:02:37.1]}
11... Bb7 {[%clk 0:02:53]} 12. Nc3 {[%clk 0:02:33.6]} 12... bxa4 {[%clk
0:02:32.8]} 13. Rxa4 {[%clk 0:02:28.8]} 13... a5 {[%clk 0:02:29.6]} 14. Bf4
{[%clk 0:01:58.5]} 14... Bc6 {[%clk 0:02:23.9]} 15. Raa1 {[%clk 0:01:41.5]}
15... Nbd5 {[%clk 0:02:23.6]} 16. Bd2 {[%clk 0:01:36.7]} 16... Nb6 {[%clk
0:02:05.8]} 17. Qc2 {[%clk 0:01:29.5]} 17... a4 {[%clk 0:01:59.5]} 18. e4 {[%clk
0:01:26.7]} 18... Qb8 {[%clk 0:01:49.9]} 19. Ne5 {[%clk 0:01:18.9]} 19... Be8
{[%clk 0:01:47.7]} 20. Bf4 {[%clk 0:01:01.2]} 20... Qb7 {[%clk 0:01:36.4]} 21.
h3 {[%clk 0:00:46.2]} 21... Rb8 {[%clk 0:01:23.8]} 22. Nd3 {[%clk 0:00:39.8]}
22... Bc6 {[%clk 0:01:15.3]} 23. Ne5 {[%clk 0:00:29.3]} 23... Be8 {[%clk
0:01:14.5]} 24. g4 {[%clk 0:00:25.5]} 24... Nfd7 {[%clk 0:01:09.6]} 25. Nd3
{[%clk 0:00:23.8]} 25... Rc8 {[%clk 0:01:02.9]} 26. Nb5 {[%clk 0:00:16.2]} 26...
c5 {[%clk 0:00:56]} 27. e5 {[%clk 0:00:15.8]} 27... Qb8 {[%clk 0:00:54.6]} 28.
Nd6 {[%clk 0:00:15.9]} 28... Bxd6 {[%clk 0:00:51.7]} 29. exd6 {[%clk 0:00:16.8]}
29... cxd4 {[%clk 0:00:48.8]} 30. Qe2 {[%clk 0:00:16.9]} 30... f6 {[%clk
0:00:40.1]} 31. Qxe6+ {[%clk 0:00:15.9]} 31... Bf7 {[%clk 0:00:40.7]} 32. Qf5
{[%clk 0:00:15.9]} 32... Rc5 {[%clk 0:00:37.8]} 33. Nxc5 {[%clk 0:00:15.4]}
33... Rd8 {[%clk 0:00:31]} 34. Ne6 {[%clk 0:00:14.8]} 34... Re8 {[%clk
0:00:29.9]} 35. Nc7 {[%clk 0:00:13.9]} 35... Rd8 {[%clk 0:00:29.8]} 36. Nd5
{[%clk 0:00:13.7]} 36... Nc4 {[%clk 0:00:24.9]} 37. Ne7+ {[%clk 0:00:13.3]}
37... Kh8 {[%clk 0:00:25.2]} 38. Bd5 {[%clk 0:00:11.8]} 38... Bxd5 {[%clk
0:00:22.4]} 39. Qxd5 {[%clk 0:00:12.7]} 39... Nce5 {[%clk 0:00:22.4]} 40. Bxe5
{[%clk 0:00:12.3]} 40... Nxe5 {[%clk 0:00:23.3]} 41. Nf5 {[%clk 0:00:11.4]}
41... g6 {[%clk 0:00:21.7]} 42. Nxd4 {[%clk 0:00:10.3]} 42... Rxd6 {[%clk
0:00:20.5]} 43. Qe4 {[%clk 0:00:10.4]} 43... Qxb2 {[%clk 0:00:18.8]} 44. Qb1
{[%clk 0:00:10.2]} 44... Qxb1 {[%clk 0:00:16]} 45. Raxb1 {[%clk 0:00:09.9]}
45... Rxd4 {[%clk 0:00:16.3]} 46. Rxd4 {[%clk 0:00:09.3]} 46... Nf3+ {[%clk
0:00:16.7]} 47. Kg2 {[%clk 0:00:09.5]} 47... Nxd4 {[%clk 0:00:17.6]} 48. Rb4
{[%clk 0:00:09.9]} 48... Ne6 {[%clk 0:00:15.6]} 49. Rxa4 {[%clk 0:00:10]} 49...
Kg7 {[%clk 0:00:16]} 50. Ra7+ {[%clk 0:00:09.8]} 50... Kg8 {[%clk 0:00:14.3]}
51. Kg3 {[%clk 0:00:10.7]} 51... g5 {[%clk 0:00:14.2]} 52. Re7 {[%clk
0:00:09.1]} 52... Nf8 {[%clk 0:00:13.3]} 53. Ra7 {[%clk 0:00:06.2]} 53... Ng6
{[%clk 0:00:13.7]} 54. Kf3 {[%clk 0:00:06.1]} 54... h5 {[%clk 0:00:10]} 55. gxh5
{[%clk 0:00:05.6]} 55... Nh4+ {[%clk 0:00:10.2]} 56. Kg4 {[%clk 0:00:05.6]}
56... Kh8 {[%clk 0:00:10.6]} 57. f4 {[%clk 0:00:04.8]} 57... Ng2 {[%clk
0:00:08.9]} 58. fxg5 {[%clk 0:00:04.4]} 58... Ne3+ {[%clk 0:00:08.8]} 59. Kf4
{[%clk 0:00:04.3]} 59... Nd5+ {[%clk 0:00:08.8]} 60. Kf5 {[%clk 0:00:04.3]}
60... fxg5 {[%clk 0:00:08.2]} 61. Kxg5 {[%clk 0:00:04.8]} 61... Nb6 {[%clk
0:00:08]} 62. Kg6 {[%clk 0:00:04.2]} 62... Nc8 {[%clk 0:00:05.9]} 63. Ra8 {[%clk
0:00:04.1]} 1-0

[Event "*** Titled Tuesday Blitz"]
[Site "Chess.com"]
[Date "2021.03.02"]
[Round "6"]
[White "Kildepiotr"]
[Black "MaxLeto"]
[Result "1-0"]
[WhiteElo "2586"]
[BlackElo "2425"]
[TimeControl "180+1"]
[EndTime "11:08:36 PST"]
[Termination "Kildepiotr won by resignation"]

1. Nf3 {[%clk 0:03:00.9]} 1... d5 {[%clk 0:02:59.3]} 2. g3 {[%clk 0:03:00.7]}
2... c6 {[%clk 0:02:59.4]} 3. Bg2 {[%clk 0:03:00.7]} 3... Nf6 {[%clk 0:03:00.3]}
4. O-O {[%clk 0:03:00.6]} 4... Bf5 {[%clk 0:03:00.8]} 5. d3 {[%clk 0:03:01]}
5... e6 {[%clk 0:03:01.1]} 6. Nbd2 {[%clk 0:03:01.6]} 6... Be7 {[%clk
0:02:59.8]} 7. Qe1 {[%clk 0:03:01.9]} 7... h6 {[%clk 0:02:59.3]} 8. e4 {[%clk
0:03:02.2]} 8... Bh7 {[%clk 0:03:00.2]} 9. Qe2 {[%clk 0:03:02.2]} 9... O-O
{[%clk 0:03:00]} 10. b3 {[%clk 0:03:02.1]} 10... a5 {[%clk 0:02:59.5]} 11. a4
{[%clk 0:03:02.4]} 11... Na6 {[%clk 0:02:58.2]} 12. Bb2 {[%clk 0:03:02.6]} 12...
Nb4 {[%clk 0:02:50.5]} 13. Ne1 {[%clk 0:03:02.6]} 13... b5 {[%clk 0:02:45.9]}
14. e5 {[%clk 0:02:59.5]} 14... Nd7 {[%clk 0:02:45]} 15. c3 {[%clk 0:02:58.8]}
15... Na6 {[%clk 0:02:39.1]} 16. axb5 {[%clk 0:02:58.5]} 16... cxb5 {[%clk
0:02:39.2]} 17. d4 {[%clk 0:02:58.9]} 17... Qb6 {[%clk 0:02:31.8]} 18. Nd3
{[%clk 0:02:52.7]} 18... Rfc8 {[%clk 0:02:14.5]} 19. Rfc1 {[%clk 0:02:51.7]}
19... Ra7 {[%clk 0:01:43.5]} 20. g4 {[%clk 0:02:42.6]} 20... Rac7 {[%clk
0:01:36.6]} 21. f4 {[%clk 0:02:41.3]} 21... Nab8 {[%clk 0:01:09.4]} 22. f5
{[%clk 0:02:39.8]} 22... Bg5 {[%clk 0:01:03]} 23. Rf1 {[%clk 0:02:30.7]} 23...
Nc6 {[%clk 0:01:00.4]} 24. Nf3 {[%clk 0:02:30]} 24... Bd8 {[%clk 0:00:52.9]} 25.
Nf4 {[%clk 0:02:29.2]} 25... Ne7 {[%clk 0:00:24.6]} 26. fxe6 {[%clk 0:02:09.2]}
26... fxe6 {[%clk 0:00:23.5]} 27. g5 {[%clk 0:01:56.1]} 27... b4 {[%clk
0:00:11.6]} 28. gxh6 {[%clk 0:01:52.8]} 28... bxc3 {[%clk 0:00:12]} 29. Ba3
{[%clk 0:01:52]} 29... Nf5 {[%clk 0:00:10.7]} 30. Qf2 {[%clk 0:01:41.5]} 30...
g5 {[%clk 0:00:05.8]} 31. Ne2 {[%clk 0:01:26.9]} 31... c2 {[%clk 0:00:01.1]} 32.
Rac1 {[%clk 0:01:26.1]} 32... Qxb3 {[%clk 0:00:01.4]} 33. Bd6 {[%clk 0:01:22]}
33... Rc6 {[%clk 0:00:01.9]} 34. Ng3 {[%clk 0:01:10.4]} 34... Qe3 {[%clk
0:00:02]} 35. Nxf5 {[%clk 0:01:05.9]} 35... Qxf2+ {[%clk 0:00:02.3]} 36. Rxf2
{[%clk 0:01:05.1]} 36... Bxf5 {[%clk 0:00:03.1]} 37. Ne1 {[%clk 0:01:00.7]}
37... Kh7 {[%clk 0:00:03.2]} 38. Bxd5 {[%clk 0:00:55.7]} 38... Rc3 {[%clk
0:00:03.6]} 39. Rxf5 {[%clk 0:00:51.3]} 39... exf5 {[%clk 0:00:03.4]} 40. Be6
{[%clk 0:00:51.7]} 40... R8c7 {[%clk 0:00:02.3]} 41. Bxc7 {[%clk 0:00:49.3]}
41... Rxc7 {[%clk 0:00:03.2]} 42. Bxf5+ {[%clk 0:00:49.5]} 42... Kxh6 {[%clk
0:00:03.9]} 43. Rxc2 {[%clk 0:00:48.6]} 43... Rxc2 {[%clk 0:00:03.8]} 44. Nxc2
{[%clk 0:00:49.5]} 44... Bb6 {[%clk 0:00:04.5]} 45. Kg2 {[%clk 0:00:47.5]} 45...
Nf8 {[%clk 0:00:04.1]} 46. Kf3 {[%clk 0:00:47.1]} 46... Kg7 {[%clk 0:00:04.1]}
47. Ke4 {[%clk 0:00:47.2]} 47... Kf7 {[%clk 0:00:04.1]} 48. d5 {[%clk
0:00:46.7]} 48... Ke7 {[%clk 0:00:04.3]} 49. d6+ {[%clk 0:00:46.8]} 49... Kf7
{[%clk 0:00:04.6]} 50. Kd5 {[%clk 0:00:46.1]} 50... Bg1 {[%clk 0:00:04.3]} 51.
h3 {[%clk 0:00:45.8]} 51... Bh2 {[%clk 0:00:04.1]} 52. Na3 {[%clk 0:00:41.3]}
52... Ke8 {[%clk 0:00:03]} 53. e6 {[%clk 0:00:40.5]} 53... Nxe6 {[%clk
0:00:01.9]} 54. Kxe6 {[%clk 0:00:37.8]} 54... Bxd6 {[%clk 0:00:01.9]} 55. Kxd6
{[%clk 0:00:37.9]} 55... Kf7 {[%clk 0:00:02.8]} 56. Bg4 {[%clk 0:00:36.3]} 56...
Kf6 {[%clk 0:00:03.6]} 57. Kc5 {[%clk 0:00:36.5]} 57... Ke5 {[%clk 0:00:03.4]}
58. Kb5 {[%clk 0:00:36.7]} 58... Kf4 {[%clk 0:00:04.3]} 59. Kxa5 {[%clk
0:00:37.1]} 59... Kg3 {[%clk 0:00:05.2]} 60. Kb5 {[%clk 0:00:37.5]} 60... Kh4
{[%clk 0:00:06.1]} 61. Kc5 {[%clk 0:00:37.9]} 61... Kg3 {[%clk 0:00:06]} 62. Kd5
{[%clk 0:00:38.2]} 62... Kh4 {[%clk 0:00:06.9]} 63. Ke5 {[%clk 0:00:38.5]} 63...
Kg3 {[%clk 0:00:07.8]} 64. Kf5 {[%clk 0:00:37.8]} 64... Kh4 {[%clk 0:00:08.7]}
65. Nc4 {[%clk 0:00:38.1]} 65... Kg3 {[%clk 0:00:08.2]} 66. Kxg5 {[%clk
0:00:38.5]} 66... Kf2 {[%clk 0:00:09.1]} 67. h4 {[%clk 0:00:38.8]} 67... Kg1
{[%clk 0:00:10]} 68. h5 {[%clk 0:00:39.1]} 68... Kf2 {[%clk 0:00:10.2]} 69. h6
{[%clk 0:00:39.4]} 69... Ke1 {[%clk 0:00:11.1]} 70. h7 {[%clk 0:00:39.7]} 70...
Kf2 {[%clk 0:00:12]} 71. h8=Q {[%clk 0:00:39.4]} 71... Kg2 {[%clk 0:00:12.9]}
72. Qb2+ {[%clk 0:00:38]} 72... Kg3 {[%clk 0:00:12.9]} 73. Qc3+ {[%clk
0:00:34.8]} 73... Kg2 {[%clk 0:00:13.8]} 74. Qd2+ {[%clk 0:00:33.9]} 74... Kg1
{[%clk 0:00:14.7]} 75. Qe1+ {[%clk 0:00:30.7]} 75... Kg2 {[%clk 0:00:14.3]} 76.
Ne3+ {[%clk 0:00:30.3]} 76... Kh2 {[%clk 0:00:12.9]} 77. Qf2+ {[%clk 0:00:29.6]}
1-0